fUSD/lending_fUSD_20250503
["ID","MTS","AMOUNT","RATE_DAILY","PERIOD"]
[359759426,1746305444480,-709.68,0.00019592,2]
[359759427,1746305444489,-450.0,0.00019592,2]
[359759428,1746305444499,-450.0,0.00019592,2]
[359759429,1746305444509,-479.51,0.00019592,2]
[359759430,1746305444519,-450.0,0.00019592,2]
[359759431,1746305444528,-532.26,0.00019592,2]
[359759432,1746305444538,-1061.78,0.00019592,2]
[359759433,1746305444547,-693.22,0.00019592,2]
[359759434,1746305444557,-611.52,0.00019592,2]
[359759435,1746305444566,-458.93,0.00019592,2]
[359759436,1746305444576,-450.0,0.00019592,2]
[359759437,1746305444585,-450.0,0.00019592,2]
[359759438,1746305444595,-450.0,0.00019592,2]
[359759439,1746305444605,-450.0,0.00019592,2]
[359759440,1746305444615,-1210.2,0.00019592,2]
[359759441,1746305444625,-706.39,0.00019592,2]
[359759442,1746305444635,-519.35,0.00019592,2]
[359759443,1746305444645,-564.98,0.00019592,2]
[359759444,1746305444655,-450.0,0.00019592,2]
[359759445,1746305444664,-450.0,0.00019592,2]
[359759446,1746305444674,-2040.18,0.00019592,2]
[359759447,1746305444684,-450.0,0.00019592,2]
[359759448,1746305444694,-450.0,0.00019592,2]
[359759449,1746305444703,-450.0,0.00019592,2]
[359759450,1746305444713,-450.0,0.00019592,2]
[359759451,1746305444722,-450.0,0.00019592,2]
[359759452,1746305444732,-450.0,0.00019592,2]
[359759453,1746305444741,-551.16,0.00019592,2]
[359759454,1746305444751,-451.76,0.00019592,2]
[359759455,1746305444760,-490.88189455,0.00019592,2]
[359759456,1746305444770,-1247.41,0.00019592,2]
[359759457,1746305444780,-450.0,0.00019592,2]
[359759458,1746305444789,-496.59,0.00019592,2]
[359759459,1746305444799,-1025.23,0.00019592,2]
[359759460,1746305444808,-450.0,0.00019592,2]
[359759461,1746305444817,-463.4,0.00019592,2]
[359759462,1746305444827,-500.0,0.00019592,2]
[359759463,1746305444836,-450.0,0.00019592,2]
[359759464,1746305444845,-2081.08,0.00019592,2]
[359759465,1746305444855,-878.16,0.00019592,2]
[359759466,1746305444864,-1922.31,0.00019592,2]
[359759467,1746305444873,-7175.65218444,0.00019627,2]
[359759468,1746305444883,-2287.72744762,0.00019627,2]
[359759469,1746305444892,-179.73835598,0.00019628,2]
[359759470,1746305444901,-166.66,0.00019668,2]
[359759471,1746305444911,-999.0,0.00019671,2]
[359759472,1746305444920,-500.0,0.00019672,2]
[359759473,1746305444929,-500.0,0.00019672,2]
[359759474,1746305444939,-7175.65218444,0.00019673,2]
[359759475,1746305444948,-2287.72744762,0.00019673,2]
[359759476,1746305444958,-179.73835598,0.00019673,2]
[359759477,1746305444967,-7175.65218444,0.00019718,2]
[359759478,1746305444976,-2287.72744762,0.00019718,2]
[359759479,1746305444986,-179.73835598,0.00019719,2]
[359759480,1746305444995,-7175.65218444,0.00019764,2]
[359759481,1746305445006,-2287.72744762,0.00019764,2]
[359759482,1746305445015,-179.73835598,0.00019764,2]
[359759483,1746305445028,-271.05396287,0.00019765,2]
[359759484,1746305445038,-8403.81633211,0.00019779,2]
[359759485,1746305445048,-250.0,0.00019783,2]
[359759486,1746305445058,-187.323863,0.0001979,2]
[359759487,1746305445070,-1291.6098677,0.00019799,2]
[359759488,1746305445080,-500.0,0.00019808,2]
[359759489,1746305445089,-7175.65218444,0.00019809,2]
[359759490,1746305445099,-2287.72744762,0.00019809,2]
[359759491,1746305445109,-179.73835598,0.00019809,2]
[359759492,1746305445119,-271.05396287,0.00019826,2]
[359759493,1746305445128,-200.0,0.0001984,2]
[359759494,1746305445137,-470.0,0.00019852,2]
[359759495,1746305445147,-450.0,0.00019852,2]
[359759496,1746305445157,-450.0,0.00019852,2]
[359759497,1746305445167,-521.70651769,0.00019852,2]
[359759498,1746305445178,-7175.65218444,0.00019855,2]
[359759499,1746305445188,-2287.72744762,0.00019855,2]
[359759500,1746305445197,-179.73835598,0.00019855,2]
[359759501,1746305445208,-258.7436912,0.00019863,2]
[359759502,1746305445218,-181.57583241,0.00019863,2]
[359759503,1746305445228,-317.15309561,0.00019863,2]
[359759504,1746305445239,-209.09092274,0.00019863,2]
[359759505,1746305445248,-500.0,0.00019863,2]
[359759506,1746305445257,-316.91735972,0.00019863,2]
[359759507,1746305445266,-385.77527078,0.00019863,2]
[359759508,1746305445275,-500.0,0.00019863,2]
[359759509,1746305445285,-500.0,0.00019863,2]
[359759510,1746305445294,-500.0,0.00019863,2]
[359759511,1746305445303,-500.0,0.00019863,2]
[359759512,1746305445313,-500.0,0.00019863,2]
[359759513,1746305445322,-500.0,0.00019863,2]
[359759514,1746305445331,-500.0,0.00019863,2]
[359759515,1746305445341,-500.0,0.00019863,2]
[359759516,1746305445350,-450.0,0.00019864,2]
[359759517,1746305445362,-450.0,0.00019864,2]
[359759518,1746305445371,-450.0,0.00019864,2]
[359759519,1746305445381,-450.0,0.00019864,2]
[359759520,1746305445390,-500.0,0.00019864,2]
[359759521,1746305445400,-980.03,0.00019864,2]
[359759522,1746305445410,-450.0,0.00019864,2]
[359759523,1746305445420,-450.0,0.00019864,2]
[359759524,1746305445429,-450.0,0.00019864,2]
[359759525,1746305445438,-450.0,0.00019864,2]
[359759526,1746305445448,-450.0,0.00019864,2]
[359759527,1746305445457,-450.0,0.00019864,2]
[359759528,1746305445466,-450.0,0.00019864,2]
[359759529,1746305445476,-582.61,0.00019864,2]
[359759530,1746305445485,-1051.55,0.00019864,2]
[359759531,1746305445494,-450.0,0.00019864,2]
[359759532,1746305445504,-450.0,0.00019864,2]
[359759533,1746305445513,-450.0,0.00019864,2]
[359759534,1746305445522,-450.0,0.00019864,2]
[359759535,1746305445532,-553.3,0.00019864,2]
[359759536,1746305445541,-500.0,0.00019864,2]
[359759537,1746305445551,-450.0,0.00019864,2]
[359759538,1746305445560,-997.22,0.00019864,2]
[359759539,1746305445569,-450.0,0.00019864,2]
[359759540,1746305445579,-616.86,0.00019864,2]
[359759541,1746305445588,-450.0,0.00019864,2]
[359759542,1746305445597,-472.88,0.00019864,2]
[359759543,1746305445607,-1309.88,0.00019864,2]
[359759544,1746305445616,-450.0,0.00019864,2]
[359759545,1746305445626,-450.0,0.00019864,2]
[359759546,1746305445635,-450.0,0.00019864,2]
[359759547,1746305445644,-185.67,0.00019864,2]
[359759548,1746305445655,-450.0,0.00019864,2]
[359759549,1746305445664,-450.0,0.00019864,2]
[359759550,1746305445673,-450.0,0.00019864,2]
[359759551,1746305445682,-450.0,0.00019864,2]
[359759552,1746305445691,-450.0,0.00019864,2]
[359759553,1746305445700,-4874.34,0.00019864,2]
[359759554,1746305445710,-690.18,0.00019864,2]
[359759555,1746305445722,-450.0,0.00019864,2]
[359759556,1746305445731,-450.0,0.00019864,2]
[359759557,1746305445740,-450.0,0.00019864,2]
[359759558,1746305445749,-514.0,0.00019864,2]
[359759559,1746305445758,-450.0,0.00019864,2]
[359759560,1746305445767,-450.0,0.00019864,2]
[359759561,1746305445776,-450.0,0.00019864,2]
[359759562,1746305445786,-641.55,0.00019864,2]
[359759563,1746305445795,-83790.55,0.00019864,2]
[359759564,1746305445804,-450.0,0.00019864,2]
[359759565,1746305445813,-450.0,0.00019864,2]
[359759566,1746305445823,-461.0,0.00019864,2]
[359759567,1746305445833,-450.0,0.00019864,2]
[359759568,1746305445842,-450.0,0.00019864,2]
[359759569,1746305445852,-2075.73,0.00019864,2]
[359759570,1746305445861,-450.0,0.00019864,2]
[359759571,1746305445870,-450.0,0.00019864,2]
[359759572,1746305445880,-551.71274125,0.00019864,2]
[359759573,1746305445889,-773.62,0.00019864,2]
[359759574,1746305445898,-3914.45,0.00019864,2]
[359759575,1746305445907,-639.58,0.00019864,2]
[359759576,1746305445917,-450.0,0.00019864,2]
[359759577,1746305445927,-456.88,0.00019864,2]
[359759578,1746305445936,-2551.38,0.00019864,2]
[359759580,1746305445946,-450.0,0.00019864,2]
[359759581,1746305445956,-862.59,0.00019864,2]
[359759582,1746305445966,-450.0,0.00019864,2]
[359759583,1746305445975,-450.0,0.00019864,2]
[359759584,1746305445984,-490.86,0.00019864,2]
[359759585,1746305445994,-150.0,0.00019865,2]
[359759586,1746305446004,-422.0,0.00019865,2]
[359759587,1746305446014,-150.0,0.00019865,2]
[359759588,1746305446027,-500.0,0.00019865,2]
[359759589,1746305446036,-150.0,0.00019865,2]
[359759590,1746305446045,-150.0,0.00019865,2]
[359759591,1746305446055,-150.0,0.00019865,2]
[359759592,1746305446064,-500.0,0.00019865,2]
[359759593,1746305446073,-500.0,0.00019865,2]
[359759594,1746305446082,-500.0,0.00019865,2]
[359759595,1746305446093,-150.0,0.00019865,2]
[359759596,1746305446102,-150.0,0.00019865,2]
[359759597,1746305446113,-451.40881658,0.00019865,2]
[359759598,1746305446122,-450.0,0.00019865,2]
[359759599,1746305446132,-450.0,0.00019865,2]
[359759600,1746305446142,-450.0,0.00019865,2]
[359759601,1746305446151,-398.10757731,0.00019865,2]
[359759602,1746305446160,-450.0,0.00019865,2]
[359759603,1746305446169,-450.0,0.00019865,2]
[359759604,1746305446178,-869.18,0.00019865,2]
[359759605,1746305446188,-450.0,0.00019865,2]
[359759606,1746305446197,-450.0,0.00019865,2]
[359759607,1746305446206,-450.0,0.00019865,2]
[359759608,1746305446215,-450.0,0.00019865,2]
[359759609,1746305446225,-450.0,0.00019865,2]
[359759610,1746305446234,-591.23,0.00019865,2]
[359759611,1746305446243,-450.0,0.00019865,2]
[359759612,1746305446253,-450.0,0.00019865,2]
[359759613,1746305446262,-450.0,0.00019865,2]
[359759614,1746305446272,-450.0,0.00019865,2]
[359759615,1746305446281,-450.0,0.00019865,2]
[359759616,1746305446290,-450.0,0.00019865,2]
[359759617,1746305446301,-441.81501817,0.00019865,2]
[359759618,1746305446311,-450.0,0.00019865,2]
[359759619,1746305446322,-450.0,0.00019865,2]
[359759620,1746305446332,-450.0,0.00019865,2]
[359759621,1746305446341,-889.35,0.00019865,2]
[359759622,1746305446351,-450.0,0.00019865,2]
[359759623,1746305446361,-450.0,0.00019865,2]
[359759624,1746305446371,-450.0,0.00019865,2]
[359759625,1746305446380,-450.0,0.00019865,2]
[359759626,1746305446390,-450.0,0.00019865,2]
[359759627,1746305446399,-450.0,0.00019865,2]
[359759628,1746305446409,-450.0,0.00019865,2]
[359759629,1746305446419,-450.0,0.00019865,2]
[359759630,1746305446429,-450.0,0.00019865,2]
[359759631,1746305446438,-450.0,0.00019865,2]
[359759632,1746305446448,-450.0,0.00019865,2]
[359759660,1746305446725,-450.0,0.00019865,2]
[359759662,1746305446738,-450.0,0.00019865,2]
[359759664,1746305446747,-450.0,0.00019865,2]
[359759666,1746305446758,-450.0,0.00019865,2]
[359759668,1746305446767,-322.41338905,0.00019865,2]
[359759670,1746305446777,-450.0,0.00019865,2]
[359759672,1746305446786,-548.94,0.00019865,2]
[359759675,1746305446796,-450.0,0.00019865,2]
[359759676,1746305446808,-450.0,0.00019865,2]
[359759679,1746305446818,-450.0,0.00019865,2]
[359759681,1746305446827,-450.0,0.00019865,2]
[359759683,1746305446837,-381.10628559,0.00019865,2]
[359759684,1746305446846,-450.0,0.00019865,2]
[359759686,1746305446856,-550.25,0.00019865,2]
[359759688,1746305446865,-450.0,0.00019865,2]
[359759690,1746305446874,-537.08,0.00019865,2]
[359759692,1746305446884,-450.0,0.00019865,2]
[359759694,1746305446893,-450.0,0.00019865,2]
[359759696,1746305446903,-450.0,0.00019865,2]
[359759698,1746305446912,-450.0,0.00019865,2]
[359759700,1746305446922,-450.0,0.00019865,2]
[359759703,1746305446931,-450.0,0.00019865,2]
[359759705,1746305446941,-450.0,0.00019865,2]
[359759706,1746305446951,-450.0,0.00019865,2]
[359759708,1746305446960,-450.0,0.00019865,2]
[359759711,1746305446970,-450.0,0.00019865,2]
[359759713,1746305446979,-450.0,0.00019865,2]
[359759715,1746305446988,-450.0,0.00019865,2]
[359759716,1746305446998,-450.0,0.00019865,2]
[359759718,1746305447007,-1295.14,0.00019865,2]
[359759720,1746305447017,-2032.6,0.00019865,2]
[359759722,1746305447029,-450.0,0.00019865,2]
[359759724,1746305447039,-450.0,0.00019865,2]
[359759726,1746305447048,-450.0,0.00019865,2]
[359759728,1746305447058,-450.0,0.00019865,2]
[359759730,1746305447069,-999.0,0.00019865,2]
[359759732,1746305447078,-578.29,0.00019865,2]
[359759734,1746305447088,-450.0,0.00019865,2]
[359759736,1746305447097,-1760.87,0.00019865,2]
[359759738,1746305447107,-466.67,0.00019865,2]
[359759740,1746305447117,-688.7,0.00019865,2]
[359759742,1746305447126,-594.6,0.00019865,2]
[359759744,1746305447136,-1535.69,0.00019865,2]
[359759746,1746305447146,-450.0,0.00019865,2]
[359759748,1746305447155,-796.94,0.00019865,2]
[359759750,1746305447165,-450.0,0.00019865,2]
[359759753,1746305447175,-577.75,0.00019865,2]
[359759755,1746305447185,-839.08,0.00019865,2]
[359759756,1746305447194,-766.89,0.00019865,2]
[359759758,1746305447204,-450.0,0.00019865,2]
[359759761,1746305447213,-4825.7,0.00019865,2]
[359759763,1746305447223,-2284.18,0.00019865,2]
[359759764,1746305447232,-580.05,0.00019865,2]
[359759766,1746305447242,-473.64,0.00019865,2]
[359759769,1746305447252,-6113.01,0.00019865,2]
[359759771,1746305447262,-450.0,0.00019865,2]
[359759772,1746305447271,-462.01,0.00019865,2]
[359759774,1746305447280,-484.28,0.00019865,2]
[359759777,1746305447290,-3887.84,0.00019865,2]
[359759779,1746305447299,-450.0,0.00019865,2]
[359759781,1746305447309,-450.0,0.00019865,2]
[359759783,1746305447318,-450.0,0.00019865,2]
[359759785,1746305447331,-450.0,0.00019865,2]
[359759787,1746305447340,-592.63,0.00019865,2]
[359759789,1746305447351,-3979.13,0.00019865,2]
[359759790,1746305447362,-83991.74,0.00019865,2]
[359759793,1746305447371,-450.0,0.00019865,2]
[359759795,1746305447381,-450.0,0.00019865,2]
[359759797,1746305447390,-1426.84,0.00019865,2]
[359759799,1746305447400,-792.18,0.00019865,2]
[359759801,1746305447410,-1516.22,0.00019865,2]
[359759803,1746305447418,-450.0,0.00019865,2]
[359759805,1746305447428,-450.0,0.00019865,2]
[359759807,1746305447437,-3626.94,0.00019865,2]
[359759809,1746305447446,-450.0,0.00019865,2]
[359759811,1746305447455,-450.0,0.00019865,2]
[359759813,1746305447465,-17865.17,0.00019865,2]
[359759815,1746305447475,-450.0,0.00019865,2]
[359759817,1746305447484,-466.62,0.00019865,2]
[359759819,1746305447493,-1228.46,0.00019865,2]
[359759821,1746305447503,-471.26,0.00019865,2]
[359759823,1746305447512,-450.0,0.00019865,2]
[359759825,1746305447522,-636.65,0.00019865,2]
[359759827,1746305447533,-11176.54,0.00019865,2]
[359759829,1746305447542,-1134.65,0.00019865,2]
[359759831,1746305447551,-476.49,0.00019865,2]
[359759833,1746305447561,-450.0,0.00019865,2]
[359759834,1746305447570,-450.0,0.00019865,2]
[359759837,1746305447580,-450.0,0.00019865,2]
[359759839,1746305447590,-556.88,0.00019865,2]
[359759841,1746305447599,-450.0,0.00019865,2]
[359759843,1746305447608,-792.07,0.00019865,2]
[359759845,1746305447618,-450.0,0.00019865,2]
[359759847,1746305447628,-450.0,0.00019865,2]
[359759849,1746305447637,-450.0,0.00019865,2]
[359759851,1746305447646,-450.0,0.00019866,2]
[359759853,1746305447655,-465.89,0.00019866,2]
[359759855,1746305447664,-450.0,0.00019866,2]
[359759857,1746305447675,-450.0,0.00019866,2]
[359759859,1746305447685,-179.77,0.00019866,2]
[359759861,1746305447695,-450.0,0.00019866,2]
[359759863,1746305447704,-687.22,0.00019866,2]
[359759864,1746305447714,-450.0,0.00019866,2]
[359759867,1746305447723,-450.0,0.00019866,2]
[359759868,1746305447733,-521.43,0.00019866,2]
[359759871,1746305447742,-450.0,0.00019866,2]
[359759873,1746305447753,-450.0,0.00019866,2]
[359759874,1746305447762,-450.0,0.00019866,2]
[359759876,1746305447771,-450.0,0.00019866,2]
[359759879,1746305447780,-450.0,0.00019866,2]
[359759881,1746305447790,-450.0,0.00019866,2]
[359759883,1746305447799,-450.0,0.00019866,2]
[359759885,1746305447808,-475.12,0.00019866,2]
[359759887,1746305447818,-450.0,0.00019866,2]
[359759889,1746305447828,-564.45,0.00019866,2]
[359759891,1746305447837,-450.0,0.00019866,2]
[359759893,1746305447846,-450.0,0.00019866,2]
[359759895,1746305447856,-450.0,0.00019866,2]
[359759897,1746305447865,-450.0,0.00019866,2]
[359759899,1746305447875,-450.0,0.00019866,2]
[359759901,1746305447884,-450.0,0.00019866,2]
[359759903,1746305447893,-869.32,0.00019866,2]
[359759905,1746305447903,-613.27,0.00019866,2]
[359759907,1746305447912,-450.0,0.00019866,2]
[359759909,1746305447922,-450.0,0.00019866,2]
[359759911,1746305447931,-450.0,0.00019866,2]
[359759912,1746305447941,-584.92,0.00019866,2]
[359759914,1746305447951,-452.79,0.00019866,2]
[359759916,1746305447960,-450.0,0.00019866,2]
[359759918,1746305447970,-450.0,0.00019866,2]
[359759921,1746305447980,-450.0,0.00019866,2]
[359759923,1746305447989,-450.0,0.00019866,2]
[359759925,1746305447999,-450.0,0.00019866,2]
[359759927,1746305448008,-532.82,0.00019866,2]
[359759929,1746305448017,-591.08,0.00019866,2]
[359759931,1746305448028,-450.0,0.00019866,2]
[359759933,1746305448038,-614.19,0.00019866,2]
[359759935,1746305448047,-510.62,0.00019866,2]
[359759936,1746305448056,-450.0,0.00019866,2]
[359759938,1746305448065,-450.0,0.00019866,2]
[359759940,1746305448075,-1350.13,0.00019866,2]
[359759941,1746305448084,-450.0,0.00019866,2]
[359759942,1746305448094,-450.0,0.00019866,2]
[359759943,1746305448103,-484.32,0.00019866,2]
[359759944,1746305448112,-450.0,0.00019866,2]
[359759945,1746305448121,-450.0,0.00019866,2]
[359759946,1746305448130,-450.0,0.00019866,2]
[359759947,1746305448140,-670.58,0.00019866,2]
[359759948,1746305448149,-824.44,0.00019866,2]
[359759949,1746305448158,-529.98,0.00019866,2]
[359759950,1746305448167,-450.0,0.00019866,2]
[359759951,1746305448176,-454.78459354,0.00019866,2]
[359759952,1746305448186,-450.0,0.00019866,2]
[359759953,1746305448195,-881.57,0.00019866,2]
[359759954,1746305448204,-450.0,0.00019866,2]
[359759955,1746305448214,-450.0,0.00019866,2]
[359759956,1746305448222,-450.0,0.00019866,2]
[359759957,1746305448232,-450.0,0.00019866,2]
[359759958,1746305448241,-709.68,0.00019866,2]
[359759959,1746305448250,-450.0,0.00019866,2]
[359759960,1746305448259,-450.0,0.00019866,2]
[359759961,1746305448268,-479.51,0.00019866,2]
[359759962,1746305448276,-167.96267066,0.00019866,2]
[359759963,1746305448284,-532.26,0.00019866,2]
[359759964,1746305448293,-1061.78,0.00019866,2]
[359759965,1746305448302,-693.22,0.00019866,2]
[359759966,1746305448310,-611.52,0.00019866,2]
[359759967,1746305448319,-458.93,0.00019866,2]
[359759968,1746305448328,-450.0,0.00019866,2]
[359759969,1746305448338,-450.0,0.00019866,2]
[359759970,1746305448349,-450.0,0.00019866,2]
[359759971,1746305448359,-450.0,0.00019866,2]
[359759972,1746305448368,-1210.2,0.00019866,2]
[359759973,1746305448377,-706.39,0.00019866,2]
[359759974,1746305448387,-519.35,0.00019866,2]
[359759975,1746305448396,-450.0,0.00019866,2]
[359759976,1746305448405,-450.0,0.00019866,2]
[359759977,1746305448414,-2040.18,0.00019866,2]
[359759978,1746305448424,-450.0,0.00019866,2]
[359759979,1746305448433,-450.0,0.00019866,2]
[359759980,1746305448443,-450.0,0.00019866,2]
[359759981,1746305448452,-450.0,0.00019866,2]
[359759982,1746305448461,-450.0,0.00019866,2]
[359759983,1746305448470,-551.16,0.00019866,2]
[359759984,1746305448479,-451.76,0.00019866,2]
[359759985,1746305448489,-1247.41,0.00019866,2]
[359759986,1746305448499,-450.0,0.00019866,2]
[359759987,1746305448508,-496.59,0.00019866,2]
[359759988,1746305448517,-1025.23,0.00019866,2]
[359759989,1746305448526,-463.4,0.00019866,2]
[359759990,1746305448536,-450.0,0.00019866,2]
[359759991,1746305448545,-2081.08,0.00019866,2]
[359759992,1746305448555,-878.16,0.00019866,2]
[359759993,1746305448564,-1922.31,0.00019866,2]
[359759994,1746305448574,-163.65177297,0.00019873,2]
[359759995,1746305448583,-506.12804986,0.00019873,2]
[359759996,1746305448592,-500.0,0.00019873,2]
[359759997,1746305448602,-500.0,0.00019873,2]
[359759998,1746305448611,-500.90438284,0.00019873,2]
[359759999,1746305448621,-157.30507306,0.00019873,2]
[359760000,1746305448630,-502.44539025,0.00019873,2]
[359760001,1746305448640,-500.0,0.00019873,2]
[359760002,1746305448649,-502.81057893,0.00019873,2]
[359760003,1746305448658,-500.0,0.00019873,2]
[359760004,1746305448668,-505.80008738,0.00019873,2]
[359760005,1746305448677,-207.79775041,0.00019873,2]
[359760006,1746305448686,-500.0,0.00019873,2]
[359760007,1746305448695,-165.0797042,0.00019873,2]
[359760008,1746305448704,-156.32997402,0.00019873,2]
[359760009,1746305448714,-500.0,0.00019873,2]
[359760010,1746305448723,-500.0,0.00019873,2]
[359760011,1746305448731,-506.72470226,0.00019873,2]
[359760012,1746305448740,-161.1858119,0.00019873,2]
[359760013,1746305448749,-500.0,0.00019873,2]
[359760014,1746305448757,-553.0106179,0.00019873,2]
[359760015,1746305448766,-271.05396287,0.00019886,2]
[359760016,1746305448775,-2000.0,0.00019899,2]
[359760017,1746305448784,-500.0,0.00019899,2]
[359760018,1746305448793,-500.0,0.00019899,2]
[359760019,1746305448802,-525.37959348,0.000199,2]
[359760020,1746305448811,-305.09,0.000199,2]
[359760021,1746305448821,-150.0,0.000199,2]
[359760022,1746305448830,-456.22,0.000199,2]
[359760023,1746305448839,-195.61,0.000199,2]
[359760024,1746305448848,-345.367043,0.000199,2]
[359760025,1746305448857,-1268.17,0.000199,2]
[359760026,1746305448867,-456.22,0.000199,2]
[359760027,1746305448876,-351.92,0.000199,2]
[359760028,1746305448885,-1154.02,0.000199,2]
[359760029,1746305448895,-150.0,0.000199,2]
[359760030,1746305448904,-801.78,0.000199,2]
[359760031,1746305448913,-711.64,0.000199,2]
[359760032,1746305448922,-456.22,0.000199,2]
[359760033,1746305448932,-150.0,0.000199,2]
[359760034,1746305448942,-2847.499,0.000199,2]
[359760035,1746305448951,-168.088,0.000199,2]
[359760036,1746305448960,-1623.13,0.000199,2]
[359760037,1746305448969,-456.22,0.000199,2]
[359760038,1746305448979,-351.92,0.000199,2]
[359760039,1746305448988,-352.02,0.000199,2]
[359760040,1746305448998,-801.78,0.000199,2]
[359760041,1746305449007,-456.22,0.000199,2]
[359760042,1746305449075,-1151.92,0.000199,2]
[359760043,1746305449085,-150.0,0.000199,2]
[359760044,1746305449094,-801.78,0.000199,2]
[359760045,1746305449105,-456.22,0.000199,2]
[359760046,1746305449114,-352.11,0.000199,2]
[359760047,1746305449123,-801.78,0.000199,2]
[359760048,1746305449132,-703.65,0.000199,2]
[359760049,1746305449141,-150.0,0.000199,2]
[359760050,1746305449150,-801.78,0.000199,2]
[359760051,1746305449159,-352.11,0.000199,2]
[359760052,1746305449168,-150.0,0.000199,2]
[359760053,1746305449177,-150.0,0.000199,2]
[359760054,1746305449187,-801.78,0.000199,2]
[359760055,1746305449196,-310.17,0.000199,2]
[359760056,1746305449205,-801.78,0.000199,2]
[359760057,1746305449214,-182.9,0.000199,2]
[359760058,1746305449223,-150.0,0.000199,2]
[359760059,1746305449232,-801.78,0.000199,2]
[359760060,1746305449241,-150.0,0.000199,2]
[359760061,1746305449250,-291.13,0.000199,2]
[359760062,1746305449260,-456.22,0.000199,2]
[359760063,1746305449270,-801.78,0.000199,2]
[359760064,1746305449279,-162.26,0.000199,2]
[359760065,1746305449288,-152.0,0.000199,2]
[359760066,1746305449297,-801.78,0.000199,2]
[359760067,1746305449306,-911.08,0.000199,2]
[359760068,1746305449315,-324.42,0.000199,2]
[359760069,1746305449325,-801.78,0.000199,2]
[359760070,1746305449334,-150.0,0.000199,2]
[359760071,1746305449344,-451.39,0.000199,2]
[359760072,1746305449353,-1154.02,0.000199,2]
[359760073,1746305449363,-162.26,0.000199,2]
[359760074,1746305449373,-801.78,0.000199,2]
[359760075,1746305449382,-801.78,0.000199,2]
[359760076,1746305449391,-451.54,0.000199,2]
[359760077,1746305449401,-162.26,0.000199,2]
[359760078,1746305449410,-801.78,0.000199,2]
[359760079,1746305449419,-7175.65218444,0.000199,2]
[359760080,1746305449429,-1154.02,0.000199,2]
[359760081,1746305449438,-902.48,0.000199,2]
[359760082,1746305449448,-706.32,0.000199,2]
[359760083,1746305449457,-801.78,0.000199,2]
[359760084,1746305449467,-2287.72744762,0.000199,2]
[359760085,1746305449476,-248.59386901,0.000199,3]
[359760086,1746305449485,-179.73835598,0.000199,2]
[359760087,1746305449494,-823.33,0.000199,2]
[359760088,1746305449503,-456.22,0.000199,2]
[359760089,1746305449513,-451.54,0.000199,2]
[359760090,1746305449522,-5205.05028845,0.000199,2]
[359760091,1746305449531,-1428.84961224,0.000199,2]
[359760092,1746305449540,-4045.76583976,0.000199,2]
[359760093,1746305449549,-442.66176012,0.000199,2]